[Event "Chpt France Universitaire 2024"]
[Site "Bastia, France"]
[Date "2024.04.06"]
[Round "3.5"]
[White "Bosc, Seraphina"]
[Black "Dalaud, Dorian"]
[Result "1/2-1/2"]
[TimeControl "15min+5s"]
[WhiteElo "2216"]
[BlackElo "2307"]

1. e4 {[%clk 00:15:05]} {[%emt 00:00:05]} Nc6 {[%clk 00:15:05]} {[%emt
00:00:03]} 2. d4 {[%clk 00:15:02]} {[%emt 00:00:07]} d5 {[%clk 00:15:05]}
{[%emt 00:00:02]} 3. exd5 {[%clk 00:14:52]} {[%emt 00:00:16]} Qxd5 {[%clk
00:15:05]} {[%emt 00:00:03]} 4. c3 {[%clk 00:13:55]} {[%emt 00:01:02]} e5
{[%clk 00:13:59]} {[%emt 00:01:11]} 5. dxe5 {[%clk 00:13:42]} {[%emt 00:00:18]}
Qxd1+ {[%clk 00:13:59]} {[%emt 00:00:06]} 6. Kxd1 {[%clk 00:13:42]} Nxe5 {[%clk
00:13:59]} {[%emt 00:00:03]} 7. Bf4 {[%clk 00:13:03]} {[%emt 00:00:44]} Ng4
{[%clk 00:12:46]} {[%emt 00:01:17]} 8. Nh3 {[%clk 00:12:04]} {[%emt 00:01:04]}
Bc5 {[%clk 00:12:46]} {[%emt 00:00:02]} 9. Bxc7 {[%clk 00:10:31]} {[%emt
00:01:38]} Bxf2 {[%clk 00:12:42]} {[%emt 00:00:10]} 10. Bf4 {[%clk 00:09:42]}
{[%emt 00:00:53]} N8f6 {[%clk 00:12:05]} {[%emt 00:00:43]} 11. Bb5+ {[%clk
00:09:16]} {[%emt 00:00:31]} Bd7 {[%clk 00:12:05]} {[%emt 00:00:02]} 12. Bxd7+
{[%clk 00:09:16]} {[%emt 00:00:05]} Nxd7 {[%clk 00:11:51]} {[%emt 00:00:19]} 13.
Rf1 {[%clk 00:08:50]} {[%emt 00:00:31]} Bh4 {[%clk 00:11:43]} {[%emt 00:00:13]}
14. Nd2 {[%clk 00:08:02]} {[%emt 00:00:53]} O-O-O {[%clk 00:11:43]} {[%emt
00:00:03]} 15. Kc2 {[%clk 00:07:59]} {[%emt 00:00:08]} Nc5 {[%clk 00:11:22]}
{[%emt 00:00:26]} 16. Nc4 {[%clk 00:06:35]} {[%emt 00:01:30]} Ne4 {[%clk
00:09:22]} {[%emt 00:02:05]} 17. Rad1 {[%clk 00:05:54]} {[%emt 00:00:45]} f5
{[%clk 00:09:01]} {[%emt 00:00:27]} 18. Kc1 {[%clk 00:02:18]} {[%emt 00:03:42]}
g6 {[%clk 00:08:11]} {[%emt 00:00:55]} 19. Ne5 {[%clk 00:01:42]} {[%emt
00:00:40]} Nxe5 {[%clk 00:05:04]} {[%emt 00:03:12]} 20. Bxe5 {[%clk 00:01:42]}
{[%emt 00:00:01]} Rhe8 {[%clk 00:05:04]} {[%emt 00:00:01]} 21. Bd4 {[%clk
00:01:30]} {[%emt 00:00:18]} b6 {[%clk 00:04:53]} {[%emt 00:00:17]} 22. Kc2
{[%clk 00:01:23]} {[%emt 00:00:11]} Nd6 {[%clk 00:04:27]} {[%emt 00:00:31]} 23.
g3 {[%clk 00:01:15]} {[%emt 00:00:13]} Re2+ {[%clk 00:03:21]} {[%emt 00:01:12]}
24. Rd2 {[%clk 00:01:15]} {[%emt 00:00:01]} Rxd2+ {[%clk 00:02:54]} {[%emt
00:00:32]} 25. Kxd2 {[%clk 00:01:15]} {[%emt 00:00:01]} Nc4+ {[%clk 00:02:54]}
{[%emt 00:00:01]} 26. Kc1 {[%clk 00:01:13]} {[%emt 00:00:07]} Be7 {[%clk
00:02:41]} {[%emt 00:00:17]} 27. Re1 {[%clk 00:01:13]} {[%emt 00:00:04]} Rd7
{[%clk 00:02:36]} {[%emt 00:00:11]} 28. Nf4 {[%clk 00:01:01]} {[%emt 00:00:16]}
Nd6 {[%clk 00:02:07]} {[%emt 00:00:34]} 29. Kc2 {[%clk 00:00:36]} {[%emt
00:00:31]} Bg5 {[%clk 00:01:04]} {[%emt 00:01:08]} 30. Nd3 {[%clk 00:00:24]}
{[%emt 00:00:16]} Kb7 {[%clk 00:00:49]} {[%emt 00:00:21]} 31. Ne5 {[%clk
00:00:20]} {[%emt 00:00:09]} Re7 {[%clk 00:00:49]} {[%emt 00:00:01]} 32. Nf3
{[%clk 00:00:20]} {[%emt 00:00:05]} Rxe1 {[%clk 00:00:49]} {[%emt 00:00:02]} 33.
Nxe1 {[%clk 00:00:20]} {[%emt 00:00:01]} Ne4 {[%clk 00:00:39]} {[%emt
00:00:14]} 34. Nf3 {[%clk 00:00:20]} {[%emt 00:00:01]} Be7 {[%clk 00:00:27]}
{[%emt 00:00:18]} 35. Nd2 {[%clk 00:00:18]} {[%emt 00:00:07]} Ng5 {[%clk
00:00:27]} {[%emt 00:00:03]} 36. Kd3 {[%clk 00:00:18]} {[%emt 00:00:03]} Kc6
{[%clk 00:00:27]} {[%emt 00:00:03]} 37. Be3 {[%clk 00:00:18]} {[%emt 00:00:04]}
Ne6 {[%clk 00:00:26]} {[%emt 00:00:06]} 38. Nc4 {[%clk 00:00:17]} {[%emt
00:00:05]} Kd5 {[%clk 00:00:26]} {[%emt 00:00:06]} 39. Nd2 {[%clk 00:00:17]}
{[%emt 00:00:03]} Bd6 {[%clk 00:00:12]} {[%emt 00:00:19]} 40. c4+ {[%clk
00:00:17]} {[%emt 00:00:06]} Kc6 {[%clk 00:00:12]} 41. Nf3 {[%clk 00:00:17]}
{[%emt 00:00:03]} f4 {[%clk 00:00:11]} {[%emt 00:00:06]} 42. gxf4 {[%clk
00:00:16]} {[%emt 00:00:06]} Nxf4+ {[%clk 00:00:11]} {[%emt 00:00:01]} 43. Ke4
{[%clk 00:00:10]} {[%emt 00:00:11]} Ne6 {[%clk 00:00:11]} {[%emt 00:00:01]} 44.
h3 {[%clk 00:00:10]} {[%emt 00:00:04]} Nc5+ {[%clk 00:00:11]} {[%emt 00:00:02]}
45. Kd4 {[%clk 00:00:06]} {[%emt 00:00:09]} Nd7 {[%clk 00:00:11]} {[%emt
00:00:03]} 46. Kd3 {[%clk 00:00:06]} {[%emt 00:00:02]} Nf6 {[%clk 00:00:09]}
{[%emt 00:00:07]} 47. Bd4 {[%clk 00:00:06]} {[%emt 00:00:03]} Nh5 {[%clk
00:00:09]} {[%emt 00:00:01]} 48. Ke4 {[%clk 00:00:06]} {[%emt 00:00:04]} Ng3+
{[%clk 00:00:09]} {[%emt 00:00:04]} 49. Kd3 {[%clk 00:00:06]} {[%emt 00:00:01]}
Nf5 {[%clk 00:00:09]} {[%emt 00:00:02]} 50. Bf2 {[%clk 00:00:06]} {[%emt
00:00:04]} Kd7 {[%clk 00:00:09]} {[%emt 00:00:04]} 51. b3 {[%clk 00:00:06]}
{[%emt 00:00:03]} Ke6 {[%clk 00:00:09]} 52. Nd4+ {[%clk 00:00:06]} {[%emt
00:00:03]} Nxd4 {[%clk 00:00:08]} {[%emt 00:00:06]} 53. Bxd4 {[%clk 00:00:06]}
{[%emt 00:00:03]} Kf5 {[%clk 00:00:08]} {[%emt 00:00:03]} 54. Bf2 {[%clk
00:00:06]} {[%emt 00:00:02]} Kf4 {[%clk 00:00:08]} {[%emt 00:00:04]} 55. Ke2
{[%clk 00:00:06]} {[%emt 00:00:05]} h5 {[%clk 00:00:08]} {[%emt 00:00:05]} 56.
Be1 {[%clk 00:00:06]} {[%emt 00:00:04]} Ke4 {[%clk 00:00:08]} {[%emt 00:00:05]}
57. Bf2 {[%clk 00:00:06]} {[%emt 00:00:04]} Kf4 {[%clk 00:00:08]} {[%emt
00:00:02]} 58. Be1 {[%clk 00:00:06]} Bc5 {[%clk 00:00:08]} {[%emt 00:00:02]} 59.
b4 {[%clk 00:00:06]} {[%emt 00:00:02]} Be7 {[%clk 00:00:07]} {[%emt 00:00:04]}
60. a3 {[%clk 00:00:06]} {[%emt 00:00:04]} Ke4 {[%clk 00:00:07]} 61. Bf2 {[%clk
00:00:06]} {[%emt 00:00:01]} g5 {[%clk 00:00:07]} {[%emt 00:00:03]} 62. Bg1
{[%clk 00:00:06]} {[%emt 00:00:05]} g4 {[%clk 00:00:07]} {[%emt 00:00:05]} 63.
hxg4 {[%clk 00:00:06]} {[%emt 00:00:01]} hxg4 {[%clk 00:00:07]} 64. Bf2 {[%clk
00:00:06]} {[%emt 00:00:04]} Kf4 {[%clk 00:00:07]} {[%emt 00:00:05]} 65. c5
{[%clk 00:00:06]} {[%emt 00:00:03]} bxc5 {[%emt 00:00:02]} 66. bxc5 {[%clk
00:00:06]} {[%emt 00:00:02]} g3 {[%clk 00:00:06]} {[%emt 00:00:06]} 67. Bg1
{[%clk 00:00:06]} {[%emt 00:00:04]} Ke4 {[%clk 00:00:06]} {[%emt 00:00:02]} 68.
c6 {[%clk 00:00:06]} {[%emt 00:00:03]} Bd8 {[%clk 00:00:06]} {[%emt 00:00:05]}
69. Bxa7 {[%clk 00:00:06]} {[%emt 00:00:02]} Kd5 {[%clk 00:00:06]} {[%emt
00:00:01]} 70. Kf3 {[%clk 00:00:06]} {[%emt 00:00:02]} Bc7 {[%clk 00:00:06]}
{[%emt 00:00:04]} 71. Bg1 {[%clk 00:00:06]} {[%emt 00:00:04]} Kxc6 {[%clk
00:00:06]} {[%emt 00:00:03]} 72. a4 {[%clk 00:00:06]} {[%emt 00:00:02]} Kb7
{[%clk 00:00:06]} {[%emt 00:00:05]} 73. a5 {[%clk 00:00:06]} {[%emt 00:00:04]}
Ka6 {[%clk 00:00:06]} {[%emt 00:00:01]} 74. Bb6 {[%clk 00:00:06]} {[%emt
00:00:03]} Bb8 {[%clk 00:00:06]} {[%emt 00:00:01]} 75. Bd8 {[%clk 00:00:06]}
{[%emt 00:00:02]} Kb5 {[%clk 00:00:06]} {[%emt 00:00:05]} 76. Kg2 {[%clk
00:00:06]} Ka6 {[%clk 00:00:06]} {[%emt 00:00:02]} 77. Kf3 {[%clk 00:00:06]}
Kb5 {[%clk 00:00:06]} {[%emt 00:00:01]} 78. Kg2 {[%clk 00:00:06]} Ka6 {[%clk
00:00:06]} {[%emt 00:00:01]} 79. Kf3 {[%clk 00:00:06]} 1/2-1/2

[Event "Chpt France Universitaire 2024"]
[Site "Bastia, France"]
[Date "2024.04.06"]
[Round "3.6"]
[White "Tomasi, Elise"]
[Black "Eveno, Nathan"]
[Result "0-1"]
[TimeControl "15min+5s"]
[WhiteElo "1993"]
[BlackElo "2192"]

1. d4 {[%clk 00:15:04]} {[%emt 00:00:05]} d5 {[%clk 00:15:05]} {[%emt
00:00:02]} 2. Nf3 {[%clk 00:15:04]} {[%emt 00:00:02]} e6 {[%clk 00:15:05]}
{[%emt 00:00:01]} 3. g3 {[%clk 00:15:04]} {[%emt 00:00:02]} c5 {[%clk
00:15:05]} {[%emt 00:00:04]} 4. Bg2 {[%clk 00:15:02]} {[%emt 00:00:07]} Nf6
{[%clk 00:15:05]} {[%emt 00:00:05]} 5. O-O {[%clk 00:15:02]} {[%emt 00:00:03]}
cxd4 {[%clk 00:15:05]} {[%emt 00:00:02]} 6. b3 {[%clk 00:14:39]} {[%emt
00:00:28]} h6 {[%clk 00:14:58]} {[%emt 00:00:12]} 7. Bb2 {[%clk 00:14:35]}
{[%emt 00:00:08]} Bc5 {[%clk 00:14:58]} {[%emt 00:00:02]} 8. Bxd4 {[%clk
00:14:35]} {[%emt 00:00:02]} Qe7 {[%clk 00:14:58]} {[%emt 00:00:01]} 9. c4
{[%clk 00:12:02]} {[%emt 00:02:39]} dxc4 {[%clk 00:14:55]} {[%emt 00:00:09]} 10.
bxc4 {[%clk 00:12:02]} {[%emt 00:00:01]} Nc6 {[%clk 00:14:41]} {[%emt
00:00:19]} 11. Bb2 {[%clk 00:11:49]} {[%emt 00:00:17]} O-O {[%clk 00:14:37]}
{[%emt 00:00:10]} 12. Nbd2 {[%clk 00:10:40]} {[%emt 00:01:14]} Rd8 {[%clk
00:14:11]} {[%emt 00:00:31]} 13. Qc1 {[%clk 00:10:40]} {[%emt 00:00:03]} e5
{[%clk 00:10:49]} {[%emt 00:03:27]} 14. Nb3 {[%clk 00:08:07]} {[%emt 00:02:38]}
Bf5 {[%clk 00:10:02]} {[%emt 00:00:52]} 15. Nh4 {[%clk 00:07:00]} {[%emt
00:01:12]} Be4 {[%clk 00:09:17]} {[%emt 00:00:50]} 16. Bh3 {[%clk 00:05:28]}
{[%emt 00:01:36]} Nd4 {[%clk 00:08:51]} {[%emt 00:00:31]} 17. Nxd4 {[%clk
00:05:00]} {[%emt 00:00:34]} exd4 {[%clk 00:08:46]} {[%emt 00:00:10]} 18. Re1
{[%clk 00:04:16]} {[%emt 00:00:49]} Nh7 {[%clk 00:07:01]} {[%emt 00:01:50]} 19.
Nf5 {[%clk 00:02:47]} {[%emt 00:01:34]} Qe5 {[%clk 00:01:43]} {[%emt 00:05:23]}
20. e3 {[%clk 00:01:40]} {[%emt 00:01:12]} Ng5 {[%clk 00:01:43]} {[%emt
00:00:01]} 21. Bg4 {[%clk 00:01:22]} {[%emt 00:00:23]} Bxf5 {[%clk 00:00:49]}
{[%emt 00:00:59]} 22. f4 {[%clk 00:00:26]} {[%emt 00:01:01]} dxe3 {[%clk
00:00:15]} {[%emt 00:00:39]} 23. Re2 {[%clk 00:00:08]} {[%emt 00:00:23]} Qe6
{[%clk 00:00:14]} {[%emt 00:00:06]} 24. Bxf5 {[%clk 00:00:08]} {[%emt
00:00:03]} Nf3+ {[%clk 00:00:14]} {[%emt 00:00:04]} 25. Kg2 {[%clk 00:00:08]}
{[%emt 00:00:03]} Qxf5 {[%clk 00:00:14]} {[%emt 00:00:04]} 26. Kxf3 {[%emt
00:00:08]} Qh5+ {[%clk 00:00:14]} {[%emt 00:00:02]} 27. g4 {[%clk 00:00:07]}
Qh3+ {[%emt 00:00:04]} 28. Ke4 Qxg4 {[%clk 00:00:14]} {[%emt 00:00:05]} 29. Qg1
{[%clk 00:00:07]} {[%emt 00:00:03]} f5+ {[%clk 00:00:13]} {[%emt 00:00:07]} 30.
Ke5 {[%clk 00:00:07]} {[%emt 00:00:01]} Qxe2 {[%clk 00:00:13]} {[%emt
00:00:04]} 31. Rb1 {[%clk 00:00:07]} {[%emt 00:00:04]} Qd3 {[%clk 00:00:13]}
{[%emt 00:00:04]} 32. Kd4 {[%emt 00:00:11]} 0-1

[Event "Chpt France Universitaire 2024"]
[Site "Bastia, France"]
[Date "2024.04.06"]
[Round "3.7"]
[White "Maache, Jawad"]
[Black "Dubuisson, Samuel"]
[Result "0-1"]
[TimeControl "15min+5s"]
[WhiteElo "2154"]
[BlackElo "2129"]

1. d4 {[%clk 00:15:05]} {[%emt 00:00:02]} Nf6 {[%clk 00:15:05]} {[%emt
00:00:04]} 2. Nc3 {[%clk 00:15:05]} {[%emt 00:00:02]} d5 {[%clk 00:15:05]}
{[%emt 00:00:02]} 3. Bf4 {[%clk 00:15:05]} {[%emt 00:00:03]} e6 {[%clk
00:15:05]} {[%emt 00:00:04]} 4. Nb5 {[%clk 00:15:05]} {[%emt 00:00:04]} Na6
{[%clk 00:15:05]} {[%emt 00:00:02]} 5. a3 {[%clk 00:15:05]} {[%emt 00:00:02]}
Be7 {[%clk 00:14:43]} {[%emt 00:00:27]} 6. e3 {[%clk 00:14:59]} {[%emt
00:00:11]} Bd7 {[%clk 00:14:26]} {[%emt 00:00:22]} 7. Nc3 {[%clk 00:14:39]}
{[%emt 00:00:26]} Nb8 {[%clk 00:14:23]} {[%emt 00:00:08]} 8. Nf3 {[%clk
00:14:27]} {[%emt 00:00:17]} O-O {[%clk 00:14:23]} {[%emt 00:00:04]} 9. g4
{[%clk 00:12:44]} {[%emt 00:01:47]} c5 {[%clk 00:10:40]} {[%emt 00:03:48]} 10.
Ne5 {[%clk 00:10:33]} {[%emt 00:02:16]} Nc6 {[%clk 00:10:28]} {[%emt 00:00:17]}
11. Be2 {[%clk 00:09:56]} {[%emt 00:00:42]} Nxe5 {[%clk 00:09:19]} {[%emt
00:01:14]} 12. Bxe5 {[%clk 00:09:35]} {[%emt 00:00:25]} Qb6 {[%clk 00:08:58]}
{[%emt 00:00:26]} 13. Rb1 {[%clk 00:08:49]} {[%emt 00:00:51]} Rac8 {[%clk
00:08:58]} {[%emt 00:00:04]} 14. Bf3 {[%clk 00:07:04]} {[%emt 00:01:51]} cxd4
{[%clk 00:06:50]} {[%emt 00:02:13]} 15. Qxd4 {[%clk 00:05:53]} {[%emt
00:01:15]} Bc5 {[%clk 00:06:34]} {[%emt 00:00:21]} 16. Qd2 {[%clk 00:05:33]}
{[%emt 00:00:25]} Bc6 {[%clk 00:06:26]} {[%emt 00:00:14]} 17. b4 {[%clk
00:03:45]} {[%emt 00:01:54]} Be7 {[%clk 00:06:26]} {[%emt 00:00:04]} 18. Bd4
{[%clk 00:03:14]} {[%emt 00:00:36]} Qc7 {[%clk 00:06:17]} {[%emt 00:00:13]} 19.
Nd1 {[%clk 00:02:18]} {[%emt 00:01:02]} Rfd8 {[%clk 00:05:19]} {[%emt
00:01:04]} 20. Qc3 {[%clk 00:02:14]} {[%emt 00:00:09]} Ba4 {[%clk 00:02:57]}
{[%emt 00:02:27]} 21. Qxc7 {[%clk 00:02:10]} {[%emt 00:00:08]} Rxc7 {[%clk
00:02:57]} 22. Nc3 {[%clk 00:01:26]} {[%emt 00:00:49]} Bxc2 {[%clk 00:02:47]}
{[%emt 00:00:15]} 23. Rc1 {[%clk 00:01:26]} Be4 {[%clk 00:02:06]} {[%emt
00:00:47]} 24. Bxe4 {[%clk 00:00:46]} {[%emt 00:00:45]} Nxe4 {[%clk 00:02:06]}
{[%emt 00:00:03]} 25. Ke2 {[%clk 00:00:37]} {[%emt 00:00:14]} Rdc8 {[%clk
00:02:03]} {[%emt 00:00:08]} 26. Na2 {[%clk 00:00:28]} {[%emt 00:00:15]} Rc2+
{[%emt 00:00:46]} 0-1

[Event "Chpt France Universitaire 2024"]
[Site "Bastia, France"]
[Date "2024.04.06"]
[Round "3.8"]
[White "Destic, Elena"]
[Black "Cahen, Alexis"]
[Result "0-1"]
[TimeControl "15min+5s"]
[WhiteElo "1946"]
[BlackElo "2060"]

1. e4 {[%clk 00:15:05]} {[%emt 00:00:01]} c5 {[%clk 00:15:05]} {[%emt
00:00:03]} 2. Nf3 {[%clk 00:15:05]} {[%emt 00:00:01]} d6 {[%clk 00:15:05]}
{[%emt 00:00:03]} 3. c3 {[%clk 00:15:05]} {[%emt 00:00:02]} Nf6 {[%clk
00:15:05]} {[%emt 00:00:05]} 4. h3 {[%clk 00:15:05]} {[%emt 00:00:02]} Nc6
{[%clk 00:15:00]} {[%emt 00:00:10]} 5. Bd3 {[%clk 00:15:05]} {[%emt 00:00:05]}
c4 {[%clk 00:13:58]} {[%emt 00:01:07]} 6. Bxc4 {[%clk 00:13:36]} {[%emt
00:01:35]} Nxe4 {[%clk 00:13:58]} {[%emt 00:00:05]} 7. d4 {[%clk 00:13:07]}
{[%emt 00:00:33]} d5 {[%clk 00:12:39]} {[%emt 00:01:24]} 8. Bd3 {[%clk
00:12:42]} {[%emt 00:00:30]} Nf6 {[%clk 00:11:27]} {[%emt 00:01:17]} 9. O-O
{[%clk 00:12:40]} {[%emt 00:00:08]} e6 {[%clk 00:10:53]} {[%emt 00:00:39]} 10.
Re1 {[%clk 00:12:30]} {[%emt 00:00:14]} Bd6 {[%clk 00:10:32]} {[%emt 00:00:25]}
11. Nbd2 {[%clk 00:11:20]} {[%emt 00:01:16]} Qc7 {[%clk 00:09:54]} {[%emt
00:00:43]} 12. Nf1 {[%clk 00:09:41]} {[%emt 00:01:44]} O-O {[%clk 00:09:35]}
{[%emt 00:00:22]} 13. Qe2 {[%clk 00:08:57]} {[%emt 00:00:50]} Nd7 {[%clk
00:05:32]} {[%emt 00:04:08]} 14. Ne3 {[%clk 00:08:36]} {[%emt 00:00:26]} Nb6
{[%clk 00:04:44]} {[%emt 00:00:54]} 15. Bd2 {[%clk 00:08:29]} {[%emt 00:00:12]}
e5 {[%clk 00:04:43]} {[%emt 00:00:06]} 16. dxe5 {[%clk 00:08:27]} {[%emt
00:00:07]} Nxe5 {[%clk 00:04:39]} {[%emt 00:00:09]} 17. Nxe5 {[%clk 00:08:27]}
{[%emt 00:00:03]} Bxe5 {[%emt 00:01:33]} 18. Nf5 {[%emt 00:00:17]} Bxf5 {[%clk
00:04:26]} {[%emt 00:00:06]} 19. Bxf5 {[%clk 00:02:48]} {[%emt 00:00:53]} Nc4
20. Be3 {[%emt 00:04:42]} g6 {[%emt 00:00:03]} 21. Bd3 {[%emt 00:00:54]} b5
{[%emt 00:00:35]} 22. Bd4 {[%clk 00:02:11]} {[%emt 00:00:17]} Rfe8 23. Bxe5
{[%emt 00:00:19]} Rxe5 {[%emt 00:00:19]} 24. Qc2 {[%emt 00:00:12]} Rae8 {[%clk
00:02:08]} {[%emt 00:00:01]} 25. Rxe5 {[%emt 00:00:17]} Rxe5 {[%clk 00:01:53]}
{[%emt 00:00:04]} 26. b3 {[%clk 00:01:55]} {[%emt 00:00:01]} Nd6 {[%clk
00:01:51]} {[%emt 00:00:07]} 27. Qd2 {[%clk 00:01:51]} {[%emt 00:00:09]} Qe7
{[%clk 00:01:33]} {[%emt 00:00:22]} 28. Rd1 {[%clk 00:01:43]} {[%emt 00:00:13]}
a6 {[%clk 00:01:23]} {[%emt 00:00:16]} 29. Kf1 {[%clk 00:01:16]} {[%emt
00:00:31]} Qe6 {[%clk 00:01:03]} {[%emt 00:00:25]} 30. f4 {[%clk 00:01:11]}
{[%emt 00:00:11]} Ne4 {[%clk 00:00:45]} {[%emt 00:00:22]} 31. Bxe4 {[%clk
00:00:43]} {[%emt 00:00:33]} Rxe4 {[%clk 00:00:45]} 32. Qxd5 {[%clk 00:00:43]}
{[%emt 00:00:04]} Re1+ {[%clk 00:00:40]} {[%emt 00:00:10]} 33. Rxe1 {[%clk
00:00:32]} {[%emt 00:00:16]} Qxd5 {[%clk 00:00:40]} 34. Kf2 {[%clk 00:00:30]}
{[%emt 00:00:06]} Qd2+ {[%clk 00:00:40]} {[%emt 00:00:04]} 35. Re2 {[%clk
00:00:30]} {[%emt 00:00:02]} Qxf4+ {[%clk 00:00:40]} {[%emt 00:00:03]} 36. Ke1
{[%clk 00:00:30]} {[%emt 00:00:01]} Qc1+ {[%clk 00:00:40]} {[%emt 00:00:01]} 37.
Kf2 {[%clk 00:00:30]} {[%emt 00:00:01]} Qxc3 {[%clk 00:00:40]} {[%emt
00:00:01]} 38. Re3 {[%clk 00:00:20]} {[%emt 00:00:15]} Qa5 {[%clk 00:00:37]}
{[%emt 00:00:08]} 39. Re2 {[%clk 00:00:18]} {[%emt 00:00:08]} h5 {[%clk
00:00:37]} {[%emt 00:00:03]} 40. Kf3 {[%clk 00:00:18]} {[%emt 00:00:03]} Kg7
{[%clk 00:00:37]} {[%emt 00:00:01]} 41. Kf2 {[%clk 00:00:18]} {[%emt 00:00:01]}
Qa3 {[%clk 00:00:37]} {[%emt 00:00:03]} 42. Rd2 {[%clk 00:00:18]} {[%emt
00:00:03]} a5 {[%clk 00:00:37]} {[%emt 00:00:03]} 43. Re2 {[%clk 00:00:18]}
{[%emt 00:00:02]} h4 {[%clk 00:00:37]} {[%emt 00:00:02]} 44. Rc2 {[%clk
00:00:18]} {[%emt 00:00:03]} g5 {[%clk 00:00:37]} {[%emt 00:00:02]} 45. Kf3
{[%clk 00:00:18]} {[%emt 00:00:03]} Qd6 {[%clk 00:00:37]} {[%emt 00:00:02]} 0-1

[Event "Chpt France Universitaire 2024"]
[Site "Bastia, France"]
[Date "2024.04.06"]
[Round "3.9"]
[White "Budak, Rewi"]
[Black "Cardi, Jean"]
[Result "1-0"]
[TimeControl "15min+5s"]
[WhiteElo "2112"]
[BlackElo "1922"]

1. e4 {[%clk 00:15:05]} {[%emt 00:00:02]} c5 {[%clk 00:15:05]} {[%emt
00:00:02]} 2. Nc3 {[%clk 00:15:01]} {[%emt 00:00:09]} g6 {[%clk 00:15:05]}
{[%emt 00:00:05]} 3. d4 {[%clk 00:14:35]} {[%emt 00:00:32]} cxd4 {[%clk
00:14:57]} {[%emt 00:00:14]} 4. Qxd4 {[%clk 00:14:35]} {[%emt 00:00:01]} Nf6
{[%clk 00:14:44]} {[%emt 00:00:18]} 5. f4 {[%clk 00:14:35]} {[%emt 00:00:03]}
Nc6 {[%clk 00:14:26]} {[%emt 00:00:23]} 6. Qf2 {[%clk 00:14:35]} {[%emt
00:00:01]} d5 {[%clk 00:13:42]} {[%emt 00:00:49]} 7. e5 {[%clk 00:14:10]}
{[%emt 00:00:30]} d4 {[%clk 00:12:18]} {[%emt 00:01:30]} 8. Nb5 {[%clk
00:11:15]} {[%emt 00:03:00]} a6 {[%clk 00:07:56]} {[%emt 00:04:26]} 9. Na3
{[%clk 00:07:49]} {[%emt 00:03:31]} Ne4 {[%clk 00:06:43]} {[%emt 00:01:18]} 10.
Qe2 {[%clk 00:07:49]} {[%emt 00:00:01]} Qa5+ {[%clk 00:05:44]} {[%emt
00:01:04]} 11. Bd2 {[%clk 00:07:49]} {[%emt 00:00:03]} Nxd2 {[%clk 00:05:41]}
{[%emt 00:00:08]} 12. Qxd2 {[%clk 00:07:49]} {[%emt 00:00:01]} Qxd2+ {[%clk
00:05:37]} {[%emt 00:00:10]} 13. Kxd2 {[%clk 00:07:49]} Bh6 {[%clk 00:05:23]}
{[%emt 00:00:19]} 14. g3 {[%clk 00:07:36]} {[%emt 00:00:18]} Nxe5 {[%clk
00:05:15]} {[%emt 00:00:13]} 15. Bg2 {[%clk 00:06:12]} {[%emt 00:01:29]} Be6
{[%clk 00:03:29]} {[%emt 00:01:50]} 16. Re1 {[%clk 00:05:09]} {[%emt 00:01:09]}
Nc6 {[%clk 00:03:20]} {[%emt 00:00:14]} 17. Nf3 {[%clk 00:04:33]} {[%emt
00:00:41]} O-O-O {[%clk 00:03:12]} {[%emt 00:00:13]} 18. h4 {[%clk 00:04:13]}
{[%emt 00:00:24]} Bd5 {[%clk 00:02:08]} {[%emt 00:01:09]} 19. Rhf1 {[%clk
00:03:52]} {[%emt 00:00:26]} e5 {[%clk 00:01:41]} {[%emt 00:00:32]} 20. Bh3+
{[%clk 00:03:45]} {[%emt 00:00:11]} f5 {[%clk 00:01:34]} {[%emt 00:00:13]} 21.
Nxe5 {[%clk 00:03:29]} {[%emt 00:00:22]} Rhe8 {[%clk 00:01:12]} {[%emt
00:00:27]} 22. Nac4 {[%clk 00:03:21]} {[%emt 00:00:13]} Bxc4 {[%clk 00:00:50]}
{[%emt 00:00:27]} 23. Nxc4 {[%clk 00:03:19]} {[%emt 00:00:07]} Kc7 {[%clk
00:00:42]} {[%emt 00:00:14]} 24. Bg2 {[%clk 00:03:12]} {[%emt 00:00:12]} b5
{[%clk 00:00:38]} {[%emt 00:00:08]} 25. Bxc6 {[%clk 00:02:57]} {[%emt
00:00:20]} Kxc6 {[%clk 00:00:38]} 26. Ne5+ {[%clk 00:02:57]} {[%emt 00:00:01]}
Kd5 {[%clk 00:00:38]} {[%emt 00:00:05]} 27. Nf7 {[%clk 00:02:57]} {[%emt
00:00:01]} Bf8 {[%clk 00:00:22]} {[%emt 00:00:22]} 28. Nxd8 {[%clk 00:02:54]}
{[%emt 00:00:08]} Rxd8 {[%clk 00:00:22]} 29. Re5+ {[%clk 00:02:54]} {[%emt
00:00:02]} Kc6 {[%clk 00:00:20]} {[%emt 00:00:07]} 30. Kd3 {[%clk 00:02:49]}
{[%emt 00:00:10]} Bd6 {[%clk 00:00:15]} {[%emt 00:00:10]} 31. Re6 {[%clk
00:02:49]} {[%emt 00:00:02]} Kd5 {[%clk 00:00:11]} {[%emt 00:00:09]} 32. Rfe1
{[%clk 00:02:49]} {[%emt 00:00:01]} Rc8 {[%clk 00:00:11]} {[%emt 00:00:03]} 33.
Re8 {[%clk 00:02:48]} {[%emt 00:00:07]} Rc7 {[%clk 00:00:11]} {[%emt 00:00:02]}
34. Rd8 {[%clk 00:02:47]} {[%emt 00:00:06]} Kc5 {[%clk 00:00:10]} {[%emt
00:00:06]} 35. Re6 {[%clk 00:02:43]} {[%emt 00:00:09]} Rc6 {[%clk 00:00:10]}
{[%emt 00:00:05]} 36. b4+ {[%clk 00:02:32]} {[%emt 00:00:16]} Kd5 {[%clk
00:00:10]} {[%emt 00:00:04]} 37. Re5# {[%emt 00:00:02]} Ke4+ 38. Kxe4 1-0